fUST/lending_fUST_20250928
["ID","MTS","AMOUNT","RATE_DAILY","PERIOD"]
[388053625,1758994269063,-480.0,0.00036164,9]
[388053626,1758994269072,-480.0,0.00036164,9]
[388053627,1758994269081,-5451.79,0.00036164,9]
[388053628,1758994269090,-1083.01,0.00036164,9]
[388053629,1758994269099,-480.0,0.00036164,9]
[388053630,1758994269108,-1357.77,0.00036164,9]
[388053631,1758994269118,-480.0,0.00036164,9]
[388053632,1758994269127,-210.88326245,0.00036164,9]
[388053633,1758994269137,-480.0,0.00036164,9]
[388053634,1758994269146,-1344.59,0.00036164,9]
[388053635,1758994269156,-480.0,0.00036164,9]
[388053636,1758994269165,-480.0,0.00036164,9]
[388053637,1758994269174,-471.65841448,0.00036164,9]
[388053638,1758994269183,-480.0,0.00036164,9]
[388053639,1758994269191,-2678.73,0.00036164,9]
[388053640,1758994269201,-480.0,0.00036164,9]
[388053641,1758994269209,-702.0,0.00036164,9]
[388053642,1758994269218,-480.0,0.00036164,9]
[388053643,1758994269227,-318.94,0.00036164,9]
[388053644,1758994269236,-480.0,0.00036164,9]
[388053645,1758994269245,-480.0,0.00036164,9]
[388053646,1758994269254,-543.96,0.00036164,9]
[388053647,1758994269262,-480.0,0.00036164,9]
[388053648,1758994269271,-480.0,0.00036164,9]
[388053649,1758994269280,-774.73,0.00036164,9]
[388053650,1758994269289,-480.0,0.00036164,9]
[388053651,1758994269297,-593.84,0.00036164,9]
[388053652,1758994269306,-154.75129365,0.00036164,9]
[388053653,1758994269315,-594.73940393,0.00036164,9]
[388053654,1758994269324,-480.0,0.00036164,9]
[388053655,1758994269333,-480.0,0.00036164,9]
[388053656,1758994269342,-3764.15,0.00036164,9]
[388053657,1758994269351,-1672.18,0.00036164,9]
[388053658,1758994269360,-480.0,0.00036164,9]
[388053659,1758994269369,-480.0,0.00036164,9]
[388053660,1758994269377,-824.17,0.00036164,9]
[388053661,1758994269386,-480.0,0.00036164,9]
[388053662,1758994269395,-298.40663136,0.00036164,9]
[388053663,1758994269404,-480.0,0.00036164,9]
[388053664,1758994269413,-480.0,0.00036164,9]
[388053665,1758994269422,-1635.38,0.00036164,9]
[388053666,1758994269431,-480.0,0.00036164,9]
[388053667,1758994269440,-1641.95,0.00036164,9]
[388053668,1758994269449,-480.0,0.00036164,9]
[388053669,1758994269458,-2067.34,0.00036164,9]
[388053670,1758994269467,-480.0,0.00036164,9]
[388053671,1758994269476,-1427.52,0.00036164,9]
[388053672,1758994269485,-480.0,0.00036164,9]
[388053673,1758994269494,-480.0,0.00036164,9]
[388053674,1758994269503,-480.0,0.00036164,9]
[388053675,1758994269511,-480.0,0.00036164,9]
[388053676,1758994269520,-396.50505287,0.00036164,9]
[388053677,1758994269529,-3405.97,0.00036164,9]
[388053678,1758994269539,-480.0,0.00036164,9]
[388053679,1758994269548,-480.0,0.00036164,9]
[388053680,1758994269567,-708.47,0.00036164,9]
[388053681,1758994269582,-634.2,0.00036164,9]
[388053682,1758994269591,-694.12,0.00036164,9]
[388053683,1758994269601,-2636.4,0.00036164,9]
[388053684,1758994269610,-480.0,0.00036164,9]
[388053685,1758994269619,-1654.9,0.00036164,9]
[388053686,1758994269627,-2287.25,0.00036164,9]
[388053687,1758994269636,-652.19,0.00036164,9]
[388053688,1758994269651,-480.0,0.00036164,9]
[388053689,1758994269659,-486.78649802,0.00036164,9]
[388053690,1758994269668,-480.0,0.00036164,9]
[388053691,1758994269679,-3119.71,0.00036164,9]
[388053692,1758994269688,-480.0,0.00036164,9]
[388053693,1758994269697,-480.0,0.00036164,9]
[388053694,1758994269706,-400.03425619,0.00036164,9]
[388053695,1758994269715,-480.0,0.00036164,9]
[388053696,1758994269724,-480.0,0.00036164,9]
[388053697,1758994269733,-480.0,0.00036164,9]
[388053698,1758994269742,-480.0,0.00036164,7]
[388053699,1758994269751,-487.8,0.00036164,9]
[388053700,1758994269760,-480.0,0.00036164,9]
[388053701,1758994269768,-480.0,0.00036164,9]
[388053702,1758994269777,-369.87248542,0.00036164,9]
[388053703,1758994269786,-1602.93,0.00036164,9]
[388053704,1758994269795,-1094.7,0.00036164,9]
[388053705,1758994269803,-509.65,0.00036164,9]
[388053706,1758994269812,-514.65,0.00036164,9]
[388053707,1758994269821,-389.58591709,0.00036164,9]
[388053708,1758994269830,-480.0,0.00036164,9]
[388053709,1758994269838,-480.0,0.00036164,9]
[388053710,1758994269847,-491.62699392,0.00036164,9]
[388053711,1758994269857,-1950.93,0.00036164,9]
[388053712,1758994269977,-480.0,0.00036164,9]
[388053713,1758994269987,-480.0,0.00036164,9]
[388053714,1758994269996,-480.0,0.00036164,9]
[388053715,1758994270005,-553.38,0.00036164,9]
[388053716,1758994270014,-480.0,0.00036164,9]
[388053717,1758994270023,-480.0,0.00036164,9]
[388053718,1758994270032,-480.0,0.00036164,9]
[388053719,1758994270042,-480.0,0.00036164,9]
[388053720,1758994270051,-480.0,0.00036164,9]
[388053721,1758994270060,-627.4705246,0.00036164,9]
[388053722,1758994270069,-943.83,0.00036164,9]
[388053723,1758994270078,-480.0,0.00036164,9]
[388053724,1758994270087,-858.06,0.00036164,9]
[388053725,1758994270097,-480.0,0.00036164,9]
[388053726,1758994270107,-634.09,0.00036164,9]
[388053727,1758994270116,-1169.77,0.00036164,9]
[388053728,1758994270125,-480.0,0.00036164,9]
[388053729,1758994270134,-480.0,0.00036164,9]
[388053730,1758994270143,-633.36,0.00036164,9]
[388053731,1758994270152,-480.0,0.00036164,9]
[388053732,1758994270162,-2365.78,0.00036164,9]
[388053733,1758994270171,-480.0,0.00036164,9]
[388053734,1758994270181,-480.0,0.00036164,9]
[388053735,1758994270190,-480.0,0.00036164,9]
[388053736,1758994270199,-480.0,0.00036164,9]
[388053737,1758994270208,-480.0,0.00036164,9]
[388053738,1758994270217,-814.78,0.00036164,9]
[388053739,1758994270227,-480.0,0.00036164,9]
[388053740,1758994270236,-485.19570197,0.00036164,9]
[388053741,1758994270248,-640.81,0.00036164,9]
[388053742,1758994270258,-908.9,0.00036164,9]
[388053743,1758994270268,-480.0,0.00036164,9]
[388053744,1758994270277,-732.25,0.00036164,9]
[388053745,1758994270286,-545.09,0.00036164,9]
[388053746,1758994270295,-480.0,0.00036164,9]
[388053747,1758994270304,-480.0,0.00036164,9]
[388053748,1758994270316,-1247.12,0.00036164,9]
[388053749,1758994270329,-480.0,0.00036164,9]
[388053750,1758994270339,-480.0,0.00036164,9]
[388053751,1758994270348,-480.0,0.00036164,9]
[388053752,1758994270358,-480.0,0.00036164,9]
[388053753,1758994270366,-480.0,0.00036164,9]
[388053754,1758994270376,-480.0,0.00036164,9]
[388053755,1758994270385,-480.0,0.00036164,9]
[388053756,1758994270394,-480.0,0.00036164,9]
[388053757,1758994270404,-480.0,0.00036164,9]
[388053758,1758994270413,-480.0,0.00036164,9]
[388053759,1758994270422,-480.0,0.00036164,9]
[388053760,1758994270432,-480.0,0.00036164,9]
[388053761,1758994270441,-480.0,0.00036164,9]
[388053762,1758994270450,-480.0,0.00036164,9]
[388053763,1758994270459,-372.11452476,0.00036164,9]
[388053764,1758994270468,-480.0,0.00036164,9]
[388053765,1758994270477,-480.0,0.00036164,9]
[388053766,1758994270486,-480.0,0.00036164,9]
[388053767,1758994270496,-480.0,0.00036164,9]
[388053768,1758994270505,-480.0,0.00036164,9]
[388053769,1758994270515,-480.0,0.00036164,9]
[388053770,1758994270523,-1220.21,0.00036164,9]
[388053771,1758994270533,-480.0,0.00036164,9]
[388053772,1758994270542,-480.0,0.00036164,9]
[388053773,1758994270552,-480.0,0.00036164,9]
[388053774,1758994270561,-694.24,0.00036164,9]
[388053775,1758994270571,-480.0,0.00036164,9]
[388053776,1758994270581,-480.0,0.00036164,9]
[388053777,1758994270590,-480.0,0.00036164,9]
[388053778,1758994270599,-480.0,0.00036164,9]
[388053779,1758994270609,-480.0,0.00036164,9]
[388053780,1758994270619,-480.0,0.00036164,9]
[388053781,1758994270628,-480.0,0.00036164,9]
[388053782,1758994270639,-480.0,0.00036164,9]
[388053783,1758994270655,-480.0,0.00036164,9]
[388053784,1758994270665,-559.05,0.00036164,9]
[388053785,1758994270675,-480.0,0.00036164,9]
[388053786,1758994270685,-3248.1,0.00036164,9]
[388053787,1758994270695,-480.0,0.00036164,9]
[388053788,1758994270705,-673.8,0.00036164,9]
[388053789,1758994270716,-480.0,0.00036164,9]
[388053790,1758994270727,-480.0,0.00036164,9]
[388053791,1758994270737,-480.0,0.00036164,9]
[388053792,1758994270747,-480.0,0.00036164,9]
[388053793,1758994270757,-480.0,0.00036164,9]
[388053794,1758994270766,-579.8,0.00036164,9]
[388053795,1758994270775,-1466.3,0.00036164,9]
[388053796,1758994270785,-609.36421997,0.00036164,9]
[388053797,1758994270795,-2409.52,0.00036164,9]
[388053798,1758994270804,-583.63,0.00036164,9]
[388053799,1758994270813,-480.0,0.00036164,9]
[388053800,1758994270823,-1295.32,0.00036164,9]
[388053801,1758994270832,-480.0,0.00036164,9]
[388053802,1758994270841,-480.0,0.00036164,9]
[388053803,1758994270852,-480.0,0.00036164,9]
[388053804,1758994270861,-354.62188562,0.00036164,9]
[388053805,1758994270870,-1635.5,0.00036164,9]
[388053806,1758994270880,-480.0,0.00036164,9]
[388053807,1758994270889,-773.73,0.00036164,9]
[388053808,1758994270899,-480.0,0.00036164,9]
[388053809,1758994270908,-819.06,0.00036164,9]
[388053810,1758994270917,-480.0,0.00036164,9]
[388053811,1758994270927,-480.0,0.00036164,9]
[388053812,1758994270936,-895.09,0.00036164,9]
[388053813,1758994270945,-298.84,0.00036164,9]
[388053814,1758994270955,-480.0,0.00036164,9]
[388053815,1758994270964,-480.0,0.00036164,9]
[388053816,1758994270974,-1762.78,0.00036164,9]
[388053817,1758994270983,-480.0,0.00036164,9]
[388053818,1758994270992,-480.0,0.00036164,9]
[388053819,1758994271002,-1913.8,0.00036164,9]
[388053820,1758994271012,-480.0,0.00036164,9]
[388053821,1758994271022,-480.0,0.00036164,9]
[388053822,1758994271034,-2365.15,0.00036164,9]
[388053823,1758994271044,-1077.66,0.00036164,9]
[388053824,1758994271054,-3621.43,0.00036164,9]
[388053825,1758994271063,-480.0,0.00036164,9]
[388053826,1758994271073,-480.0,0.00036164,9]
[388053827,1758994271083,-480.0,0.00036164,9]
[388053828,1758994271092,-480.0,0.00036164,9]
[388053829,1758994271102,-569.51,0.00036164,9]
[388053830,1758994271112,-783.09,0.00036164,9]
[388053831,1758994271121,-480.0,0.00036164,9]
[388053832,1758994271131,-5851.91,0.00036164,9]
[388053833,1758994271141,-480.0,0.00036164,9]
[388053834,1758994271151,-3217.73,0.00036164,9]
[388053835,1758994271160,-1417.32,0.00036164,9]
[388053836,1758994271170,-2376.82,0.00036164,9]
[388053837,1758994271180,-785.41,0.00036164,9]
[388053838,1758994271190,-480.0,0.00036164,9]
[388053839,1758994271199,-488.44039688,0.00036164,9]
[388053840,1758994271209,-570.76,0.00036164,9]
[388053841,1758994271219,-480.0,0.00036164,9]
[388053842,1758994271228,-480.0,0.00036164,9]
[388053843,1758994271237,-1530.06,0.00036164,9]
[388053844,1758994271247,-480.0,0.00036164,9]
[388053845,1758994271256,-429.67357988,0.00036164,9]
[388053846,1758994271266,-480.0,0.00036164,9]
[388053847,1758994271275,-2125.03,0.00036164,9]
[388053848,1758994271284,-480.0,0.00036164,9]
[388053849,1758994271294,-753.61,0.00036164,9]
[388053850,1758994271303,-662.5,0.00036164,9]
[388053851,1758994271313,-480.0,0.00036164,9]
[388053852,1758994271323,-480.0,0.00036164,9]
[388053853,1758994271332,-480.0,0.00036164,9]
[388053854,1758994271341,-480.0,0.00036164,9]
[388053855,1758994271351,-480.0,0.00036164,9]
[388053856,1758994271360,-1721.27,0.00036164,9]
[388053857,1758994271370,-611.21,0.00036164,9]
[388053858,1758994271379,-637.19,0.00036164,9]
[388053859,1758994271387,-3545.61,0.00036164,9]
[388053860,1758994271396,-11763.28,0.00036164,9]
[388053861,1758994271406,-480.0,0.00036164,9]
[388053862,1758994271415,-1271.8,0.00036164,9]
[388053863,1758994271424,-1408.28,0.00036164,9]
[388053864,1758994271434,-2708.81,0.00036164,9]
[388053865,1758994271444,-11816.93,0.00036164,9]
[388053866,1758994271453,-3808.87,0.00036164,9]
[388053867,1758994271463,-480.0,0.00036164,9]
[388053868,1758994271472,-480.0,0.00036164,9]
[388053869,1758994271481,-3600.11,0.00036164,9]
[388053870,1758994271490,-480.0,0.00036164,9]
[388053871,1758994271499,-720.5,0.00036164,9]
[388053872,1758994271508,-480.0,0.00036164,9]
[388053873,1758994271518,-480.0,0.00036164,9]
[388053874,1758994271527,-480.0,0.00036164,9]
[388053875,1758994271537,-5256.05,0.00036164,9]
[388053876,1758994271546,-480.0,0.00036164,9]
[388053877,1758994271555,-480.0,0.00036164,9]
[388053878,1758994271564,-480.0,0.00036164,9]
[388053879,1758994271573,-480.0,0.00036164,9]
[388053880,1758994271582,-480.0,0.00036164,9]
[388053881,1758994271591,-480.0,0.00036164,7]
[388053882,1758994271600,-1065.2,0.00036164,9]
[388053883,1758994271610,-7261.54,0.00036164,3]
[388053884,1758994271619,-7281.49,0.00036164,9]
[388053885,1758994271628,-480.0,0.00036164,9]
[388053886,1758994271638,-541.5638215,0.00036164,9]
[388053887,1758994271650,-5503.8,0.00036164,9]
[388053888,1758994271660,-487.17796092,0.00036164,9]
[388053889,1758994271669,-480.0,0.00036164,9]
[388053890,1758994271679,-4195.5,0.00036164,9]
[388053891,1758994271689,-480.0,0.00036164,9]
[388053892,1758994271699,-2557.08,0.00036164,9]
[388053893,1758994271708,-713.43,0.00036164,9]
[388053894,1758994271722,-595.32,0.00036164,9]
[388053895,1758994271735,-1395.04,0.00036164,9]
[388053896,1758994271745,-480.0,0.00036164,9]
[388053897,1758994271755,-1343.26,0.00036164,9]
[388053898,1758994271766,-480.0,0.00036164,9]
[388053899,1758994271776,-3339.87,0.00036164,9]
[388053900,1758994271785,-24192.44,0.00036164,9]
[388053901,1758994271795,-480.0,0.00036164,9]
[388053902,1758994271804,-660.49,0.00036164,9]
[388053903,1758994271814,-480.0,0.00036164,9]
[388053904,1758994271823,-480.0,0.00036164,9]
[388053905,1758994271832,-5132.79,0.00036164,9]
[388053906,1758994271955,-2250.62,0.00036164,9]
[388053907,1758994271964,-480.0,0.00036164,9]
[388053908,1758994271974,-480.0,0.00036164,9]
[388053909,1758994271983,-480.0,0.00036164,9]
[388053910,1758994271992,-480.0,0.00036164,9]
[388053911,1758994272002,-501.78,0.00036164,9]
[388053912,1758994272011,-480.0,0.00036164,9]
[388053913,1758994272021,-4314.54,0.00036164,9]
[388053914,1758994272031,-3924.9,0.00036164,9]
[388053915,1758994272040,-557.99,0.00036164,9]
[388053916,1758994272049,-480.0,0.00036164,9]
[388053917,1758994272059,-480.0,0.00036164,9]
[388053918,1758994272068,-910.08,0.00036164,9]
[388053919,1758994272078,-873.81,0.00036164,9]
[388053920,1758994272087,-480.0,0.00036164,9]
[388053921,1758994272097,-655.62,0.00036164,9]
[388053922,1758994272107,-5902.52,0.00036164,9]
[388053923,1758994272117,-1046.33,0.00036164,9]
[388053924,1758994272128,-486.86,0.00036164,9]
[388053925,1758994272145,-480.0,0.00036164,9]
[388053926,1758994272164,-2948.89,0.00036164,9]
[388053927,1758994272184,-480.0,0.00036164,9]
[388053928,1758994272206,-480.0,0.00036164,9]
[388053929,1758994272229,-480.0,0.00036164,9]
[388053930,1758994272246,-1394.0,0.00036164,9]
[388053931,1758994272256,-781.94,0.00036164,9]
[388053932,1758994272266,-651.68,0.00036164,9]
[388053933,1758994272275,-608.92,0.00036164,9]
[388053934,1758994272284,-480.0,0.00036164,9]
[388053935,1758994272293,-6660.0,0.00036164,9]
[388053936,1758994272302,-1085.98,0.00036164,9]
[388053937,1758994272312,-480.0,0.00036164,9]
[388053938,1758994272322,-1000.0,0.00036164,9]
[388053939,1758994272331,-862.6,0.00036164,9]
[388053940,1758994272341,-480.0,0.00036164,9]
[388053941,1758994272350,-480.0,0.00036164,9]
[388053942,1758994272360,-674.92,0.00036164,9]
[388053943,1758994272370,-480.0,0.00036164,9]
[388053944,1758994272379,-587.24109811,0.00036164,9]
[388053945,1758994272389,-480.0,0.00036164,9]
[388053946,1758994272398,-2220.57,0.00036164,9]
[388053947,1758994272408,-566.96,0.00036164,9]
[388053948,1758994272417,-5679.9,0.00036164,9]
[388053949,1758994272427,-480.0,0.00036164,9]
[388053950,1758994272436,-480.0,0.00036164,9]
[388053951,1758994272445,-676.52,0.00036164,9]
[388053952,1758994272455,-535.04,0.00036164,9]
[388053953,1758994272464,-480.0,0.00036164,9]
[388053954,1758994272473,-480.0,0.00036164,9]
[388053955,1758994272482,-480.0,0.00036164,9]
[388053956,1758994272491,-480.0,0.00036164,9]
[388053957,1758994272505,-480.0,0.00036164,9]
[388053958,1758994272514,-6540.42,0.00036164,9]
[388053959,1758994272524,-480.0,0.00036164,9]
[388053960,1758994272534,-480.0,0.00036164,9]
[388053961,1758994272543,-491.75437231,0.00036164,9]
[388053962,1758994272553,-480.0,0.00036164,9]
[388053963,1758994272563,-1430.6,0.00036164,9]
[388053964,1758994272572,-480.0,0.00036164,9]
[388053965,1758994272582,-583.32906551,0.00036164,9]
[388053966,1758994272594,-480.0,0.00036164,9]
[388053967,1758994272603,-3400.91,0.00036164,9]
[388053968,1758994272613,-480.0,0.00036164,9]
[388053969,1758994272623,-480.0,0.00036164,9]
[388053970,1758994272633,-1039.32,0.00036164,9]
[388053971,1758994272645,-480.0,0.00036164,9]
[388053972,1758994272655,-590.07,0.00036164,9]
[388053973,1758994272664,-2165.68,0.00036164,9]
[388053974,1758994272673,-585.9,0.00036164,9]
[388053975,1758994272683,-480.0,0.00036164,9]
[388053976,1758994272693,-8879.65,0.00036164,9]
[388053977,1758994272702,-480.0,0.00036164,9]
[388053978,1758994272713,-480.0,0.00036164,9]
[388053979,1758994272723,-480.0,0.00036164,9]
[388053980,1758994272732,-480.0,0.00036164,9]
[388053981,1758994272742,-480.0,0.00036164,9]
[388053982,1758994272751,-12414.04,0.00036164,9]
[388053983,1758994272761,-480.0,0.00036164,9]
[388053984,1758994272770,-11922.12,0.00036164,9]
[388053985,1758994272779,-1103.65,0.00036164,9]
[388053986,1758994272789,-480.0,0.00036164,9]
[388053987,1758994272800,-480.0,0.00036164,9]
[388053988,1758994272810,-500.0,0.00036164,9]
[388053989,1758994272819,-480.0,0.00036164,9]
[388053990,1758994272828,-2313.45,0.00036164,9]
[388053991,1758994272837,-480.0,0.00036164,9]
[388053992,1758994272847,-3440.58,0.00036164,9]
[388053993,1758994272857,-667.79,0.00036164,9]
[388053994,1758994272866,-1943.98,0.00036164,9]
[388053995,1758994272875,-480.0,0.00036164,9]
[388053996,1758994272884,-522.64818457,0.00036164,9]
[388053997,1758994272894,-724.44,0.00036164,9]
[388053998,1758994272903,-480.0,0.00036164,9]
[388053999,1758994272912,-1351.09,0.00036164,9]
[388054000,1758994272922,-902.22,0.00036164,9]
[388054001,1758994272932,-859.97,0.00036164,9]
[388054002,1758994272941,-970.85,0.00036164,9]
[388054003,1758994272950,-652.35,0.00036164,9]
[388054004,1758994272960,-480.0,0.00036164,9]
[388054005,1758994272970,-480.0,0.00036164,9]
[388054006,1758994272979,-3231.52,0.00036164,9]
[388054007,1758994272989,-5847.17,0.00036164,9]
[388054008,1758994272998,-1579.73,0.00036164,9]
[388054009,1758994273007,-5233.48,0.00036164,9]
[388054010,1758994273017,-2534.52,0.00036164,9]
[388054011,1758994273026,-1399.8,0.00036164,9]
[388054012,1758994273035,-342.88343889,0.00036164,9]
[388054013,1758994273044,-480.0,0.00036164,9]
[388054014,1758994273054,-509.81,0.00036164,9]
[388054015,1758994273063,-480.0,0.00036164,9]
[388054016,1758994273073,-480.0,0.00036164,9]
[388054017,1758994273083,-209.39288734,0.00036164,9]
[388054018,1758994273092,-3280.61,0.00036164,9]
[388054019,1758994273101,-1717.88,0.00036164,9]
[388054020,1758994273111,-485.17368117,0.00036164,9]
[388054021,1758994273121,-501.77,0.00036164,9]
[388054022,1758994273130,-1393.31,0.00036164,9]
[388054023,1758994273140,-480.0,0.00036164,9]
[388054024,1758994273150,-480.0,0.00036164,9]
[388054025,1758994273160,-480.0,0.00036164,9]
[388054026,1758994273169,-480.0,0.00036164,9]
[388054027,1758994273180,-480.0,0.00036164,9]
[388054028,1758994273189,-480.0,0.00036164,9]
[388054029,1758994273198,-4155.87,0.00036164,9]
[388054030,1758994273208,-480.0,0.00036164,9]
[388054031,1758994273218,-213.52741714,0.00036164,9]
[388054032,1758994273228,-480.0,0.00036164,9]
[388054033,1758994273238,-1668.27,0.00036164,9]
[388054034,1758994273247,-480.0,0.00036164,9]
[388054035,1758994273257,-480.0,0.00036164,9]
[388054036,1758994273267,-2258.02,0.00036164,9]
[388054037,1758994273276,-480.0,0.00036164,9]
[388054038,1758994273286,-1790.05,0.00036164,9]
[388054039,1758994273295,-480.0,0.00036164,9]
[388054040,1758994273304,-480.0,0.00036164,9]
[388054041,1758994273314,-480.0,0.00036164,9]
[388054042,1758994273323,-480.0,0.00036164,9]
[388054043,1758994273332,-1049.63,0.00036164,9]
[388054044,1758994273342,-4211.13,0.00036164,9]
[388054045,1758994273351,-566.51814038,0.00036164,9]
[388054046,1758994273361,-972.4,0.00036164,9]
[388054047,1758994273370,-1822.75,0.00036164,9]
[388054048,1758994273379,-825.06,0.00036164,9]
[388054049,1758994273389,-1686.63,0.00036164,9]
[388054050,1758994273398,-480.0,0.00036164,9]
[388054051,1758994273408,-1363.95,0.00036164,9]
[388054052,1758994273417,-480.0,0.00036164,9]
[388054053,1758994273426,-480.0,0.00036164,9]
[388054054,1758994273436,-732.67,0.00036164,9]
[388054055,1758994273446,-480.0,0.00036164,9]
[388054056,1758994273455,-481.53,0.00036164,9]
[388054057,1758994273464,-474.72769944,0.00036164,2]
[388054058,1758994273474,-480.0,0.00036164,9]
[388054059,1758994273483,-480.0,0.00036164,9]
[388054060,1758994273493,-480.0,0.00036164,9]
[388054061,1758994273502,-480.0,0.00036164,9]
[388054062,1758994273512,-480.0,0.00036164,9]
[388054063,1758994273521,-990.05,0.00036164,9]
[388054064,1758994273531,-480.0,0.00036164,9]
[388054065,1758994273540,-1605.12,0.00036164,9]
[388054066,1758994273550,-480.0,0.00036164,9]
[388054067,1758994273559,-480.0,0.00036164,9]
[388054068,1758994273567,-150.0,0.00036173,5]
[388054069,1758994273576,-198.0,0.00036198,5]
[388054070,1758994273586,-198.0,0.00036198,5]
[388054071,1758994273594,-463.0,0.00036198,5]
[388054072,1758994273604,-203.1484647,0.0003621,2]
[388054073,1758994273613,-1000.0,0.00036221,5]
[388054074,1758994273623,-206.92078885,0.00036221,5]
[388054075,1758994273632,-264.23913072,0.0003624,2]
[388054076,1758994273643,-600.0,0.00036296,2]
[388054077,1758994273653,-206.90102324,0.00036311,5]
[388054078,1758994273662,-1000.0,0.00036321,5]
[388054079,1758994273671,-1000.0,0.00036321,5]
[388054080,1758994273680,-1028.77436745,0.00036321,5]
[388054081,1758994273690,-1000.0,0.00036421,5]
[388054082,1758994273699,-1000.0,0.00036421,5]
[388054083,1758994273708,-1000.0,0.00036421,5]
[388054084,1758994273718,-1000.0,0.00036421,5]
[388054085,1758994273832,-557.84070991,0.00036421,5]
[388054086,1758994273842,-1000.0,0.00036421,5]
[388054087,1758994273851,-1000.0,0.00036421,5]
[388054088,1758994273861,-1000.0,0.00036421,5]
[388054089,1758994273871,-1000.0,0.00036421,5]
[388054090,1758994273880,-229.87390624,0.00036421,5]
[388054091,1758994273891,-1000.0,0.00036421,5]
[388054092,1758994273901,-1000.0,0.00036421,5]
[388054093,1758994273911,-1000.0,0.00036421,5]
[388054094,1758994273921,-1000.0,0.00036421,5]
[388054095,1758994273931,-1000.0,0.00036421,5]
[388054096,1758994273940,-250.0,0.00036421,5]
[388054097,1758994273950,-1000.0,0.00036421,5]
[388054098,1758994273959,-1000.0,0.00036421,5]
[388054099,1758994273968,-1000.0,0.00036421,5]
[388054100,1758994273978,-295.9978075,0.00036421,5]
[388054101,1758994273987,-1000.0,0.00036421,5]
[388054102,1758994273996,-1000.0,0.00036421,5]
[388054103,1758994274006,-1000.0,0.00036421,5]
[388054104,1758994274015,-1000.0,0.00036421,5]
[388054105,1758994274024,-1000.0,0.00036421,5]
[388054106,1758994274033,-1000.0,0.00036421,5]
[388054107,1758994274043,-488.55360538,0.00036421,5]
[388054108,1758994274052,-501.26524461,0.00036421,5]
[388054109,1758994274061,-1000.0,0.00036421,5]
[388054110,1758994274071,-190.0,0.00036428,30]
[388054111,1758994274080,-480.0,0.00036438,9]
[388054112,1758994274090,-480.0,0.00036438,9]
[388054113,1758994274099,-196.62619944,0.00036438,9]
[388054114,1758994274109,-1084.97,0.00036438,9]
[388054115,1758994274119,-480.0,0.00036438,9]
[388054116,1758994274129,-480.0,0.00036438,9]
[388054117,1758994274139,-480.0,0.00036438,9]
[388054118,1758994274149,-480.0,0.00036438,9]
[388054119,1758994274159,-480.0,0.00036438,9]
[388054120,1758994274168,-480.0,0.00036438,9]
[388054121,1758994274177,-480.0,0.00036438,9]
[388054122,1758994274187,-480.0,0.00036438,9]
[388054123,1758994274197,-480.0,0.00036438,9]
[388054124,1758994274208,-480.0,0.00036438,9]